bitfinex/quotes_ETHUSD_20220311
["timestamp","ask_amount","ask_price","bid_price","bid_amount"]
[1646966777778,1.96715,2541.3,2540.9,1.0]
[1646966778183,1.96715,2541.3,2541.0,0.00084739]
[1646966778378,2.26729,2541.2,2541.0,0.00084739]
[1646966778580,3.2509261,2541.2,2541.0,0.00084739]
[1646966778977,3.2509261,2541.2,2540.9,1.0]
[1646966779178,0.98364,2541.1,2540.9,1.0]
[1646966779378,0.98364,2541.1,2541.0,0.00084739]
[1646966780220,0.98364,2541.1,2540.9,1.0]
[1646966780420,0.98364,2541.1,2540.9,1.00084701]
[1646966781221,2.26729,2541.2,2540.9,1.00084701]
[1646966781433,2.26729,2541.2,2540.9,1.9556]
[1646966781626,0.3,2541.2,2540.9,1.9556]
[1646966781825,1.9671051,2541.3,2541.0,1.0]
[1646966781826,0.98352,2541.3,2541.0,1.0]
[1646966782029,2.1636526,2541.8,2541.1,0.0710981]
[1646966782030,0.98344,2541.6,2541.1,0.0710981]
[1646966782426,1.28344,2541.6,2541.1,0.0710981]
[1646966782627,1.28263856,2541.6,2541.1,0.0710981]
[1646966783227,0.98344,2541.6,2541.1,0.0710981]
[1646966783979,0.98344,2541.6,2541.1,1.0710981]
[1646966784176,0.98344,2541.6,2541.2,0.07175734]
[1646966785176,0.9835486,2541.5,2541.2,0.07175734]
[1646966785377,2.9507486,2541.5,2541.2,0.07175734]
[1646966785780,2.9507486,2541.5,2541.0,0.00084707]
[1646966785978,1.96739,2541.3,2541.0,0.00084707]
[1646966786281,1.96739,2541.3,2540.7,0.0860547]
[1646966786476,1.96739,2541.3,2541.0,0.00084707]
[1646966787078,2.95109,2541.3,2541.0,0.00084707]
[1646966787279,3.9347841,2541.3,2541.0,0.00084707]
[1646966787490,3.9347841,2541.3,2540.9,0.08617654]
[1646966787721,3.9347841,2541.3,2541.0,0.00084705]
[1646966788118,0.98369,2541.2,2541.0,0.00084705]
[1646966788720,0.98369,2541.2,2540.9,1.0]
[1646966788924,0.98369,2541.2,2541.0,0.00084706]
[1646966789819,0.98369,2541.2,2540.9,1.0]
[1646966790021,0.98369,2541.2,2541.0,0.00084706]
[1646966791023,0.98369,2541.2,2540.9,1.9491]
[1646966791379,0.98369,2541.2,2541.0,0.00084706]
[1646966791776,1.96699,2541.6,2541.0,1.08605841]
[1646966791977,1.96699,2541.6,2541.1,0.0709856]
[1646966792575,1.96699,2541.6,2541.3,0.07925774]
[1646966793274,0.98346,2541.5,2541.3,0.07925774]
[1646966795721,1.96705,2541.5,2541.3,0.07925774]
[1646966796123,0.98346,2541.5,2541.2,1.0]
[1646966797533,0.98344,2541.7,2541.3,4.57544306]
[1646966797735,3.33368,2542.2,2541.3,4.57544306]
[1646966797736,1.1683,2542.4,2541.4,0.07296404]
[1646966797930,3.5,2542.3,2541.4,0.07296404]
[1646966798329,3.5,2542.3,2541.4,1.07296404]
[1646966798533,3.5,2542.3,2542.0,1.0]
[1646966798730,2.8353,2542.8,2542.1,0.08427594]
[1646966798981,3.5,2542.9,2542.1,0.08427594]
[1646966799385,3.5,2542.9,2542.4,1.0]
[1646966799581,1.1683,2543.2,2542.8,0.88240969]
[1646966799781,0.05019569,2543.4,2542.8,2.76955969]
[1646966799982,3.55019569,2543.4,2542.8,2.76955969]
[1646966800581,2.01580219,2543.4,2542.8,0.9044]
[1646966800782,1.03304219,2543.4,2542.8,0.9044]
[1646966802197,0.98285,2543.3,2542.8,0.9044]
[1646966803622,0.98285,2543.3,2542.7,0.89077561]
[1646966804224,0.98173449,2543.3,2542.7,0.89077561]
[1646966804824,0.98173449,2543.3,2542.8,0.08666634]
[1646966805024,0.98173449,2543.3,2542.9,0.08956641]
[1646966805225,2.948414,2543.6,2543.0,1.0]
[1646966805425,0.982784,2543.6,2543.1,0.08036762]
[1646966805626,7.17472,2543.8,2543.1,0.08036762]
[1646966805925,1.4571,2543.8,2543.3,0.07449749]
[1646966806124,0.3,2543.8,2543.3,0.07449749]
[1646966806380,0.34605368,2543.9,2543.3,0.07449749]
[1646966806572,0.04605368,2543.9,2543.1,0.06902021]
[1646966806774,0.34605368,2543.9,2543.3,1.0]
[1646966807375,0.34605368,2543.9,2543.3,1.98257]
[1646966809275,0.3,2543.9,2543.5,0.94940123]
[1646966809475,0.3,2543.9,2543.5,2.11570123]
[1646966809679,0.13819997,2544.1,2543.5,2.11570123]
[1646966809878,1.9650002,2544.2,2543.5,2.11570123]
[1646966810322,1.9650002,2544.2,2543.5,2.03543815]
[1646966810323,0.9825202,2544.2,2543.5,2.03543815]
[1646966810521,0.9825202,2544.2,2543.6,0.08583835]
[1646966810921,0.9825902,2544.0,2543.6,0.08583835]
[1646966811528,0.00977894,2543.9,2543.6,0.08583835]
[1646966813887,0.00977894,2543.9,2543.4,0.06901948]
[1646966814076,0.98266,2543.8,2543.4,0.06901948]
[1646966814880,0.98266,2543.8,2543.5,0.08879069]
[1646966815878,0.00977894,2543.9,2543.5,0.08879069]
[1646966817084,1.9651094,2544.2,2543.5,0.08879069]
[1646966817085,0.99247149,2544.2,2543.5,0.08879069]
[1646966818120,0.99247149,2544.2,2543.6,0.0904268]
[1646966819122,0.98255,2544.1,2543.6,0.0904268]
[1646966819724,1.28255,2544.1,2543.6,0.0904268]
[1646966820327,2.2651338,2544.1,2543.6,0.0904268]
[1646966820825,1.28255,2544.1,2543.6,0.0904268]
[1646966822474,0.3,2544.1,2543.6,0.0904268]
[1646966822677,0.30991149,2544.2,2543.6,0.0904268]
[1646966822874,0.00991149,2544.2,2543.6,0.0904268]
[1646966823476,0.98254,2544.1,2543.6,0.0904268]
[1646966823675,1.28254,2544.1,2543.6,0.0904268]
[1646966824375,2.2651185,2544.1,2543.6,0.0904268]
[1646966824777,0.00991149,2544.2,2543.6,0.0904268]
[1646966825417,0.00991149,2544.2,2543.7,1.0]
[1646966825618,0.00991149,2544.2,2543.8,0.08775031]
[1646966826720,0.00904264,2544.2,2543.8,1.05225031]
[1646966826924,0.00904264,2544.2,2543.9,1.0]
[1646966827322,0.00904264,2544.2,2543.9,0.07907524]
[1646966827525,0.00904264,2544.2,2543.9,1.06142524]
[1646966828323,0.00904264,2544.2,2543.9,2.06142524]
[1646966828525,0.00904264,2544.2,2544.0,0.08899911]
[1646966831605,1.1743,2544.5,2544.0,0.08899911]
[1646966831806,1.1743,2544.5,2544.1,0.98226]
[1646966832006,4.62046997,2544.7,2544.1,0.98226]
[1646966832207,0.01440357,2544.6,2544.2,1.00182675]
[1646966832820,0.01440357,2544.6,2544.1,0.98226]
[1646966833017,4.62046997,2544.7,2544.1,0.98226]
[1646966833819,4.62046997,2544.7,2544.0,0.08899911]
[1646966834120,4.62046997,2544.7,2544.2,0.83428511]
[1646966834320,4.57046997,2544.7,2544.2,0.83428511]
[1646966834522,3.45,2544.7,2544.3,3.5]
[1646966834722,3.45,2544.7,2544.2,1.83428511]
[1646966835520,3.45,2544.7,2544.3,0.08611145]
[1646966835724,0.98229,2544.7,2544.3,0.08611145]
[1646966836970,0.00966272,2544.6,2544.3,0.08611145]
[1646966840233,0.00966272,2544.6,2544.2,1.0]
[1646966840234,0.05434927,2544.4,2544.2,1.0]
[1646966840436,0.462,2544.3,2543.5,0.25]
[1646966840637,0.462,2544.3,2543.3,1.0]
[1646966840638,0.04290309,2544.2,2543.3,1.0]
[1646966840833,0.462,2544.1,2543.3,1.0]
[1646966841030,0.04251666,2544.0,2543.3,1.0]
[1646966841330,0.98293,2543.7,2543.1,0.95761305]
[1646966841538,1.03210494,2543.6,2542.9,0.25]
[1646966841735,0.0483897,2543.5,2542.8,1.0]
[1646966842537,1.0313297,2543.5,2542.6,1.0]
[1646966842737,2.01859906,2543.4,2543.0,0.98979144]
[1646966843141,2.01859906,2543.4,2542.7,0.07691502]
[1646966843338,0.3,2543.3,2542.7,0.07691502]
[1646966843738,0.35269976,2543.4,2542.7,0.07691502]
[1646966844169,0.98287,2543.3,2542.7,0.07691502]
[1646966844371,0.98287,2543.3,2542.8,0.91233229]
[1646966844568,0.3,2543.2,2542.8,0.91233229]
[1646966844769,0.98287,2543.3,2542.8,0.91233229]
[1646966844972,0.9828797,2543.2,2542.8,0.91233229]
[1646966845371,0.05269976,2543.4,2542.8,0.91233229]
[1646966845570,1.9658986,2543.5,2542.8,0.91233229]
[1646966845774,0.3,2543.4,2542.8,0.91233229]
[1646966846372,0.04458146,2543.6,2542.8,1.69851229]
[1646966846775,0.04458146,2543.6,2542.8,2.69851229]
[1646966846977,0.3,2543.7,2542.9,0.08224322]
[1646966847376,0.9826012,2543.7,2543.0,0.0836802]
[1646966847629,1.2826012,2543.7,2543.0,0.0836802]
[1646966848228,1.2826012,2543.7,2543.0,1.0836802]
[1646966848433,1.2826012,2543.7,2543.1,0.07571335]
[1646966848631,2.2653112,2543.7,2543.1,0.07571335]
[1646966848829,2.9482997,2543.6,2543.1,0.07571335]
[1646966849430,3.9310997,2543.6,2543.1,0.07571335]
[1646966849830,3.9310597,2543.6,2543.1,0.07571335]
[1646966850630,1.96579,2543.4,2543.1,0.07571335]
[1646966850830,2.9486823,2543.4,2543.1,0.07571335]
[1646966851232,0.98289,2543.3,2543.1,0.07571335]
[1646966852098,0.98289,2543.3,2542.8,0.91233229]
[1646966852300,0.982853,2543.2,2542.8,0.91233229]
[1646966858225,0.9827644,2543.4,2542.9,0.07279705]
[1646966859974,0.9827644,2543.4,2542.9,1.07279705]
[1646966860775,2.2654521,2543.7,2542.9,1.07279705]
[1646966860975,0.9826833,2543.6,2542.9,1.07279705]
[1646966861782,0.9826833,2543.6,2542.9,1.85894705]
[1646966863024,0.9826833,2543.6,2542.9,0.07279705]
[1646966863227,1.9656316,2543.5,2542.9,0.07279705]
[1646966864123,0.98282,2543.4,2542.9,0.07279705]
[1646966864324,0.9828303,2543.3,2542.9,0.07279705]
[1646966869189,1.9656316,2543.5,2542.9,0.07279705]
[1646966869387,0.9827197,2543.6,2542.9,0.07279705]
[1646966870323,3.9310438,2543.6,2542.9,0.07279705]
[1646966873031,2.9482738,2543.6,2542.9,0.07279705]
[1646966874278,2.9482738,2543.6,2543.0,0.07272616]
[1646966874475,0.9827197,2543.6,2543.0,0.07272616]
[1646966876580,2.9481944,2543.6,2543.0,0.07272616]
[1646966877081,3.49891722,2543.5,2543.0,0.07272616]
[1646966877283,3.9309644,2543.6,2543.0,0.07272616]
[1646966877483,1.03141883,2543.4,2542.8,1.91233229]
[1646966877724,2.99721883,2543.4,2542.8,1.91233229]
[1646966877922,2.99721883,2543.4,2542.8,0.91233229]
[1646966879126,0.9828414,2543.2,2542.8,0.91233229]
[1646966879327,0.04851673,2543.4,2542.8,0.91233229]
[1646966879828,0.3,2543.5,2542.8,0.91233229]
[1646966880028,0.49393037,2543.6,2542.9,0.07198108]
[1646966880327,0.19393037,2543.6,2542.9,0.07198108]
[1646966880626,1.17661307,2543.6,2542.9,0.07198108]
[1646966883079,0.9826827,2543.6,2542.9,0.07198108]
[1646966883480,0.9826827,2543.6,2542.9,1.07198108]
[1646966883880,0.9826827,2543.6,2543.0,0.08785135]
[1646966884080,0.9826827,2543.6,2543.0,0.38785135]
[1646966884280,0.9826827,2543.6,2543.0,1.17398135]
[1646966884681,0.9826827,2543.6,2543.0,1.38785135]
[1646966885128,0.9826827,2543.6,2543.1,0.09054154]
[1646966893732,0.9826139,2543.7,2543.1,0.87664154]
[1646966894133,1.2826139,2543.7,2543.1,0.87664154]
[1646966894930,1.2826139,2543.7,2543.6,0.94540596]
[1646966896487,0.982553,2543.9,2543.6,0.94540596]
[1646966896691,1.1883,2544.2,2543.6,0.94540596]
[1646966896887,0.0442008,2544.3,2543.7,3.5]
[1646966897087,2.8846,2544.6,2543.8,0.08479142]
[1646966897088,2.89884307,2544.6,2543.8,0.08479142]
[1646966897288,0.01424307,2544.6,2543.8,0.08479142]
[1646966897487,0.01424307,2544.6,2543.8,0.23839142]
[1646966897692,0.01424307,2544.6,2543.8,0.23759142]
[1646966897887,1.1883,2544.7,2543.8,0.23679142]
[1646966898088,1.1883,2544.7,2544.5,0.93288785]
[1646966898089,4.6883,2544.7,2544.5,0.93288785]
[1646966898289,0.04554797,2544.8,2544.5,0.93288785]
[1646966898687,0.04554797,2544.8,2544.2,3.76775]
[1646966900430,0.04554797,2544.8,2544.2,4.61151371]
[1646966901729,0.05329242,2544.8,2544.2,4.61151371]
[1646966902130,0.05184915,2544.8,2544.2,4.61151371]
[1646966904282,0.35184915,2544.8,2544.2,4.61151371]
[1646966905086,0.35184915,2544.8,2544.2,4.80801371]
[1646966905500,0.9822257,2544.7,2544.2,2.84376371]
[1646966905684,0.9822257,2544.7,2544.2,0.84376371]
[1646966905885,0.9822257,2544.7,2544.2,1.84376371]
[1646966906287,0.9822257,2544.7,2544.2,0.84376371]
[1646966909731,7.33,2544.9,2544.2,0.84376371]
[1646966909931,8.3121475,2544.9,2544.2,1.53127371]
[1646966913383,8.3121475,2544.9,2544.3,0.08884838]
[1646966914083,0.9821475,2544.9,2544.3,0.08884838]
[1646966917334,0.9821475,2544.9,2544.3,0.67812838]
[1646966918632,0.9821475,2544.9,2544.4,0.0874709]
[1646966920706,2.3576493,2545.0,2544.4,0.0874709]
[1646966922627,2.3076493,2545.0,2544.4,0.0874709]
[1646966923230,2.50157967,2545.0,2544.4,0.0874709]
[1646966923445,2.3076493,2545.0,2544.4,0.0874709]
[1646966923829,3.2898593,2545.0,2544.4,0.0874709]
[1646966924027,1.9645391,2544.9,2544.4,0.0874709]
[1646966924231,0.9822666,2544.8,2544.4,0.0874709]
[1646966927186,0.9822666,2544.8,2544.3,1.0]
[1646966927486,4.48231,2544.7,2544.1,0.07056028]
[1646966927684,0.9824152,2544.6,2543.9,1.28592932]
[1646966927886,0.9824152,2544.6,2543.9,1.1965]
[1646966927887,3.5,2544.5,2543.9,1.1965]
[1646966928083,3.8,2544.5,2543.9,1.1965]
[1646966928284,3.8,2544.5,2544.2,0.82456144]
[1646966928491,1.28251,2544.5,2544.2,0.82456144]
[1646966928885,0.982504,2544.4,2544.2,0.82456144]
[1646966932835,0.05154425,2544.6,2544.2,0.82456144]
[1646966933035,0.35154425,2544.6,2544.2,0.82456144]
[1646966933435,0.35154425,2544.6,2544.2,1.21460332]
[1646966936085,0.05154425,2544.6,2544.2,1.21460332]
[1646966936290,0.9822471,2544.7,2544.3,0.0687856]
[1646966937086,1.9645371,2544.7,2544.2,1.21460332]
[1646966941239,0.9822471,2544.7,2544.3,0.0848401]
[1646966942482,4.59953485,2545.0,2544.3,0.0848401]
[1646966942483,0.9821761,2544.9,2544.3,0.0848401]
[1646966942685,1.2821761,2544.9,2544.3,0.0848401]
[1646966944092,2.2644361,2544.9,2544.3,0.0348401]
[1646966945130,1.9646086,2544.8,2544.3,0.0348401]
[1646966945432,1.9645941,2544.7,2544.2,2.21460332]
[1646966945630,0.9822841,2544.7,2544.2,2.21460332]
[1646966947335,0.05754976,2544.8,2544.2,2.21460332]
[1646966948136,1.59976259,2545.0,2544.4,1.0]
[1646966948436,1.5869,2545.0,2544.4,1.0]
[1646966948636,1.59976257,2545.0,2544.4,1.0]
[1646966949285,2.58186917,2545.0,2544.4,1.0]
[1646966949483,2.5690066,2545.0,2544.4,1.78566]
[1646966949682,1.5869,2545.0,2544.4,1.78566]
[1646966950483,1.5869,2545.0,2544.5,1.0]
[1646966950685,1.5869,2545.0,2544.6,0.78561]
[1646966950884,0.3933,2545.0,2544.6,0.78561]
[1646966952290,0.3933,2545.0,2544.5,1.0]
[1646966952929,0.3933,2545.0,2544.5,4.5]
[1646966953133,0.3933,2545.0,2544.6,0.39004188]
[1646966953331,0.3933,2545.0,2544.7,3.5]
[1646966953532,0.3933,2545.0,2544.7,3.57729886]
[1646966953731,0.01286239,2545.3,2544.9,14.93739927]
[1646966953931,0.01286239,2545.3,2545.1,1.01786235]
[1646966954330,7.33,2545.4,2545.1,1.01786235]
[1646966954935,7.33,2545.4,2545.0,2.6159]
[1646966955133,7.33,2545.4,2545.0,0.6159]
[1646966955334,7.33,2545.4,2545.0,1.3]
[1646966955536,7.33,2545.4,2545.0,0.3]
[1646966957118,7.33,2545.4,2544.9,1.09906775]
[1646966957316,7.33,2545.4,2544.9,0.08715004]
[1646966957518,7.33,2545.4,2544.7,2.39004188]
[1646966957519,0.04457483,2545.3,2544.7,2.39004188]
[1646966957714,0.05292277,2545.1,2544.7,1.39004188]
[1646966959117,0.24685314,2545.1,2544.7,1.39004188]
[1646966959417,1.22895544,2545.1,2544.7,1.39004188]
[1646966960437,1.17895544,2545.1,2544.7,1.39004188]
[1646966960639,0.98502507,2545.1,2544.7,1.39004188]
[1646966962041,1.96719507,2545.1,2544.7,1.39004188]
[1646966963927,1.96719507,2545.1,2544.7,0.39004188]
[1646966963928,0.05209156,2545.0,2544.7,0.39004188]
[1646966964114,0.05209156,2545.0,2544.3,1.0]
[1646966964115,2.9466564,2544.9,2544.3,1.0]
[1646966964309,2.9466564,2544.9,2544.2,1.1963]
[1646966964310,0.0517567,2544.7,2544.2,1.1963]
[1646966965012,0.0517567,2544.7,2544.2,1.0]
[1646966965209,0.0517567,2544.7,2544.3,0.9262523]
[1646966966212,1.0339857,2544.7,2544.2,1.0]
[1646966966416,3.2466976,2544.9,2543.8,2.1965]
[1646966966417,2.01995864,2544.5,2543.8,2.0]
[1646966966617,0.05664754,2544.4,2543.8,1.0]
[1646966966816,0.06905169,2544.4,2543.4,0.1965]
[1646966967016,1.24535169,2544.4,2543.4,0.1965]
[1646966967316,0.9826576,2544.1,2543.3,0.1965]
[1646966967519,0.05503977,2543.9,2543.2,0.1965]
[1646966968333,0.05503977,2543.9,2543.3,0.94925066]
[1646966968536,0.0572972,2543.7,2543.4,0.1965]
[1646966969138,0.04472724,2543.9,2543.5,0.39004188]
[1646966971384,2.00996084,2543.9,2543.5,0.39004188]
[1646966971589,0.05001949,2543.8,2543.2,1.0]
[1646966971791,0.9827207,2543.7,2543.0,0.4965]
[1646966971988,0.05366176,2543.6,2543.0,0.4965]
[1646966972190,0.05366176,2543.6,2542.9,0.1965]
[1646966972390,1.9654871,2543.6,2542.9,0.1965]
[1646966972588,0.0552016,2543.5,2543.0,0.90307941]
[1646966973590,0.0552016,2543.5,2543.1,0.1965]
[1646966973789,0.0552016,2543.5,2543.0,1.20307941]
[1646966973989,0.0552016,2543.5,2543.0,0.90307941]
[1646966974190,1.0379452,2543.5,2543.0,0.90307941]
[1646966974991,1.0379452,2543.5,2543.1,0.39004188]
[1646966975830,3.29757006,2543.4,2543.0,0.3]
[1646966976032,0.04896037,2543.2,2542.6,0.1488]
[1646966976331,0.04896037,2543.2,2542.7,0.39004188]
[1646966976735,1.20356,2543.7,2542.7,0.39004188]
[1646966976736,0.3,2543.3,2543.0,0.91617513]
[1646966976936,0.3,2543.3,2542.7,0.39004188]
[1646966976937,0.05179381,2543.2,2542.7,0.39004188]
[1646966977334,1.03482901,2543.2,2542.7,0.39004188]
[1646966977535,0.04684079,2543.1,2542.7,0.39004188]
[1646966977939,1.9658539,2543.0,2542.7,0.39004188]
[1646966978138,1.9658539,2543.0,2542.5,1.0]
[1646966978337,1.03534416,2542.9,2542.5,1.0]
[1646966978736,0.35166076,2542.8,2542.5,1.0]
[1646966978984,0.05539549,2542.6,2542.5,1.0]
[1646966979383,0.9830902,2542.5,2542.2,0.98226952]
[1646966979581,0.9830902,2542.5,2542.2,1.3723114]
[1646966979582,0.04734623,2542.4,2542.2,1.3723114]
[1646966979982,1.2830902,2542.5,2542.2,1.3723114]
[1646966979983,0.3,2542.5,2542.2,1.3723114]
[1646966980381,0.05686047,2542.8,2542.2,1.3723114]
[1646966980585,0.05686047,2542.8,2542.2,2.3723114]
[1646966980983,0.05686047,2542.8,2542.2,3.0603714]
[1646966981382,0.05686047,2542.8,2542.2,2.3723114]
[1646966981987,0.9829584,2542.7,2542.2,2.3723114]
[1646966982187,1.2829584,2542.7,2542.2,2.3723114]
[1646966982631,1.2829584,2542.7,2542.2,1.3723114]
[1646966983732,0.05646811,2542.6,2542.2,1.3723114]
[1646966984933,1.2829584,2542.7,2542.2,1.3723114]
[1646966986394,0.04958527,2542.6,2542.2,1.3723114]
[1646966988491,0.04829972,2542.6,2542.2,1.3723114]
[1646966989190,0.04829972,2542.6,2542.3,4.38461]
[1646966989390,1.9658093,2543.0,2542.3,4.53181]
[1646966989391,1.03943056,2543.0,2542.3,4.53181]
[1646966989590,1.03943056,2543.0,2542.4,0.1528]
[1646966989791,1.03943056,2543.0,2542.4,1.1512]
[1646966989991,1.03943056,2543.0,2542.4,1.1504]
[1646966990241,1.03943056,2543.0,2542.5,0.39004188]
[1646966994887,1.33943056,2543.0,2542.5,0.39004188]
[1646966995788,2.32237056,2543.0,2542.5,0.39004188]
[1646966996191,3.30538986,2543.0,2542.5,0.39004188]
[1646966996390,5.27141986,2543.0,2542.5,0.39004188]
[1646966997396,1.28299,2542.9,2542.5,0.39004188]
[1646966997641,1.9661194,2542.8,2542.5,0.39004188]
[1646966998546,2.9492294,2542.8,2542.2,0.98322952]
[1646966998743,2.2662605,2542.7,2542.2,0.98226952]
[1646966999945,0.98314,2542.6,2542.2,0.98226952]
[1646967000347,1.03411043,2542.6,2542.2,0.98226952]
[1646967000749,0.05097043,2542.6,2542.2,0.98226952]
[1646967001150,0.983036,2542.5,2542.2,0.98226952]
[1646967001584,0.3,2542.5,2542.2,0.98226952]
[1646967001985,0.35097043,2542.6,2542.2,0.98226952]
[1646967002185,0.3,2542.6,2542.2,1.3723114]
[1646967002485,0.04792201,2542.6,2542.2,1.3723114]
[1646967002683,0.05287606,2542.9,2542.3,0.98291]
[1646967003085,0.35287606,2542.9,2542.3,0.98291]
[1646967003286,0.05287606,2542.9,2542.3,0.98291]
[1646967004288,1.03576706,2542.9,2542.3,0.98291]
[1646967004487,0.05538643,2542.8,2542.3,0.98291]
[1646967004687,0.35538643,2542.8,2542.2,2.3723114]
[1646967005533,0.35538643,2542.8,2542.2,5.8723114]
[1646967005734,0.05538643,2542.8,2542.2,5.8723114]
[1646967005932,0.35538643,2542.8,2542.2,5.8723114]
[1646967006138,0.05538643,2542.8,2542.2,5.8723114]
[1646967006337,0.05538643,2542.8,2542.4,0.98294]
[1646967007941,0.05538643,2542.8,2542.4,4.48294]
[1646967008240,0.02486,2542.9,2542.5,1.0]
[1646967008642,0.02486,2542.9,2542.6,0.98278]
[1646967008899,0.02486,2542.9,2542.5,4.16205]
[1646967009289,0.02486,2542.9,2542.5,2.1965]
[1646967009485,0.02486,2542.9,2542.5,1.1965]
[1646967009687,0.02486,2542.9,2542.5,1.0]
[1646967010091,0.37742758,2542.9,2542.2,4.3390314]
[1646967010289,0.04877254,2542.8,2542.3,0.1966]
[1646967012096,0.04877254,2542.8,2542.2,5.3380714]
[1646967012298,0.9830136,2542.7,2542.2,5.3380714]
[1646967012496,0.9830136,2542.7,2542.2,5.4900714]
[1646967012497,1.2830136,2542.7,2542.2,5.4900714]
[1646967012761,1.2830136,2542.7,2542.2,5.4908714]
[1646967012964,1.2830136,2542.7,2542.2,5.4860714]
[1646967013364,0.29915097,2542.7,2542.2,5.4860714]
[1646967013561,0.04877254,2542.8,2542.2,5.3380714]
[1646967013961,0.04877254,2542.8,2542.3,0.148]
[1646967014164,0.04877254,2542.8,2542.3,0.1472]
[1646967014364,0.04877254,2542.8,2542.3,0.1488]
[1646967014562,0.04877254,2542.8,2542.2,5.4908714]
[1646967014763,0.04877254,2542.8,2542.3,0.1472]
[1646967014967,0.04877254,2542.8,2542.2,5.3380714]
[1646967015264,0.9830098,2542.7,2542.2,5.3380714]
[1646967015466,0.9830098,2542.7,2542.2,5.4892714]
[1646967015665,0.9830098,2542.7,2542.2,5.3380714]
[1646967015967,0.9830098,2542.7,2542.2,3.3723114]
[1646967016383,0.9830098,2542.7,2542.2,2.3723114]
[1646967017287,0.34877254,2542.8,2542.2,2.3723114]
[1646967017987,0.34877254,2542.8,2542.3,0.98297]
[1646967018188,0.02486,2542.9,2542.3,0.98297]
[1646967019591,0.32486,2542.9,2542.3,1.98297]
[1646967019789,0.02486,2542.9,2542.3,1.98297]
[1646967020739,0.02486,2542.9,2542.5,0.98281]
[1646967020937,0.02486,2542.9,2542.6,1.0]
[1646967021741,0.02486,2542.9,2542.3,0.1496]
[1646967021948,0.02486,2542.9,2542.3,0.148]
[1646967022144,0.07779811,2542.9,2542.2,3.45848353]
[1646967022341,0.37779811,2542.9,2542.2,3.45848353]
[1646967022542,0.04590033,2542.8,2542.2,3.3723114]
[1646967023143,0.9830429,2542.7,2542.2,2.3723114]
[1646967023342,0.9830429,2542.7,2542.2,3.3723114]
[1646967023544,0.9830429,2542.7,2542.2,2.3723114]
[1646967023742,0.9830429,2542.7,2542.2,3.3723114]
[1646967023995,0.9830429,2542.7,2542.2,2.3723114]
[1646967025097,1.2830429,2542.7,2542.2,2.3723114]
[1646967026299,0.3,2542.7,2542.3,0.98297]
[1646967026701,0.34590033,2542.8,2542.3,0.98297]
[1646967028436,0.04590033,2542.8,2542.3,1.13017]
[1646967028640,0.34590033,2542.8,2542.3,0.98297]
[1646967028836,0.04590033,2542.8,2542.3,0.98297]
[1646967029237,0.34590033,2542.8,2542.3,0.98297]
[1646967031486,0.34590033,2542.8,2542.2,3.3723114]
[1646967031787,0.9829712,2542.7,2542.2,3.3723114]
[1646967032188,0.9829712,2542.7,2542.2,2.3723114]
[1646967032391,0.9829712,2542.7,2542.2,3.3723114]
[1646967032789,0.9829712,2542.7,2542.2,3.5195114]
[1646967033090,0.9829712,2542.7,2542.2,3.5227114]
[1646967033289,0.9829712,2542.7,2542.2,3.5251114]
[1646967033489,0.9829712,2542.7,2542.2,3.3723114]
[1646967033891,0.98150575,2542.7,2542.2,3.3723114]
[1646967034392,0.98150575,2542.7,2542.2,3.5203114]
[1646967034690,0.98150575,2542.7,2542.2,3.5219114]
[1646967034894,0.98150575,2542.7,2542.2,3.3723114]
[1646967035139,0.98150575,2542.7,2542.2,3.5219114]
[1646967035340,0.98150575,2542.7,2542.2,2.5219114]
[1646967035538,0.98150575,2542.7,2542.2,2.3723114]
[1646967040687,0.98150575,2542.7,2542.2,1.98226952]
[1646967040886,0.98150575,2542.7,2542.2,2.3723114]
[1646967042743,3.5,2542.6,2542.2,1.0]
[1646967042944,0.05092206,2542.5,2541.9,0.25096]
[1646967043141,0.05252243,2542.3,2541.7,0.19756]
[1646967043342,0.05252243,2542.3,2541.7,0.1966]
[1646967043942,0.05252243,2542.3,2542.2,0.82589639]
[1646967044141,1.03578313,2542.3,2542.2,0.82589639]
[1646967044341,1.33578313,2542.3,2542.2,0.82589639]
[1646967044741,1.33578313,2542.3,2542.2,1.82589639]
[1646967045541,1.33578313,2542.3,2542.2,1.0]
[1646967045742,4.1978,2542.3,2542.2,1.0]
[1646967046145,4.1978,2542.3,2541.7,0.00096]
[1646967046146,3.5965,2542.2,2541.7,0.00096]
[1646967046402,7.115289,2542.1,2541.6,0.00338737]
[1646967046596,7.115289,2542.1,2541.0,0.69404706]
[1646967046597,7.1,2541.8,2541.1,0.00096]
[1646967046794,0.98387,2541.6,2541.0,0.39404706]
[1646967046994,5.66442,2541.5,2541.0,0.39404706]
[1646967047294,5.66442,2541.5,2541.3,0.00338775]
[1646967047295,2.4296752,2541.4,2541.3,0.00338775]
[1646967047494,0.98385,2541.2,2541.0,0.39404706]
[1646967047694,0.98385,2541.2,2541.0,0.00084706]
[1646967047897,3.25156,2541.2,2541.0,0.00084706]
[1646967048096,2.26771,2541.2,2540.4,0.00096]
[1646967048295,2.26771,2541.2,2540.2,0.00096]
[1646967048296,5.2196837,2541.2,2540.2,0.00096]
[1646967048495,0.98401,2540.9,2540.1,0.19766]
[1646967048894,0.9839801,2540.7,2540.1,0.1967]
[1646967049095,0.9839801,2540.7,2540.2,1.0]
[1646967049295,1.2839801,2540.7,2540.2,1.0]
[1646967049494,2.2679701,2540.7,2540.3,0.96484272]
[1646967049697,1.2839801,2540.7,2540.3,0.96484272]
[1646967051546,1.2839801,2540.7,2540.2,1.0]
[1646967051744,3.5,2540.6,2540.2,1.0]
[1646967051945,6.4520743,2540.6,2540.4,0.00101883]
[1646967052145,3.5,2540.5,2540.4,0.00101883]
[1646967052345,3.8,2540.5,2540.4,0.00101883]
[1646967052743,3.8,2540.5,2540.2,1.0]
[1646967052947,1.96838,2540.4,2540.2,1.0]
[1646967053146,3.5,2540.3,2540.2,1.0]
[1646967053348,3.9968,2540.3,2540.2,0.01778384]
[1646967053899,3.9968,2540.3,2540.2,8.384e-05]
[1646967054092,0.4968,2540.3,2540.2,8.384e-05]
[1646967054295,3.9968,2540.3,2540.2,8.384e-05]
[1646967054704,0.4968,2540.3,2540.2,8.384e-05]
[1646967054896,0.3,2540.3,2540.2,8.384e-05]
[1646967055898,0.9841624,2540.4,2540.2,8.384e-05]
[1646967056696,0.9841624,2540.4,2540.2,0.00101891]
[1646967057749,0.9841624,2540.4,2540.0,0.3]
[1646967057750,0.04857257,2540.2,2540.0,0.3]